Cogmind - Beta 14 @@@ ROGUE MODE // 2025.03.10 @ 14:38:49 Player: Alphabethead Result: Self-destructed Performance ------------- Evolutions (1) 500 Regions Visited (3) 600 Robots Destroyed (10) 50 Value Destroyed (311) 311 Prototype IDs (0) 0 Alien Tech Used (0) 0 Bonus (0) 0 TOTAL SCORE: 1461 Bonus ------- None Cogmind --------- Core Integrity 292/400 Matter 268/300 Energy 100/100 System Corruption 0% Temperature Cool (0) Movement Walking (120) Location -9/Materials Parts ------- > --- POWER (1) -------- (None) > --- PROPULSION (2) --- Aluminum Leg > --- UTILITY (4) ------ Small Storage Unit Visual Processing Unit > --- WEAPON (2) ------- (None) > --- INVENTORY (8) ---- Aluminum Leg Mining Laser Peak State ------------ > --- POWER ------------ Improved Ion Engine > --- PROPULSION ------- Aluminum Leg Aluminum Leg > --- UTILITY ---------- Small Storage Unit Medium Armor Plating > --- WEAPON ----------- Light Assault Rifle Light Assault Rifle > --- INVENTORY -------- Ion Engine Ion Engine Aluminum Leg Aluminum Leg Assault Rifle Mining Laser [Rating: 9] Favorites ----------- Power Light Ion Engine Engine Light Ion Engine Power Core Light Nuclear Core Propulsion Aluminum Leg Leg Aluminum Leg Utility Small Storage Unit Storage Small Storage Unit Processor Visual Processing Unit Protection Medium Armor Plating Weapon Light Assault Rifle Ballistic Gun Light Assault Rifle Build | -11 -10 -10 -9 ------- Run | Yrd Mat Min Mat Slots Evolved 2 | . . . 2 Power . | . . . . Propulsion . | . . . . Utility 2 | . . . 2 Weapon . | . . . . Parts Attached 20 | 7 . 1 12 Power 5 | 1 . 1 3 Engine 4 | 1 . 1 2 Core 1 | . . . 1 Reactor . | . . . . Propulsion 5 | 2 . . 3 Treads . | . . . . Leg 5 | 2 . . 3 Wheel . | . . . . Hover . | . . . . Flight . | . . . . Utility 4 | 1 . . 3 Device . | . . . . Storage 2 | 1 . . 1 Processor 1 | . . . 1 Hackware . | . . . . Protection 1 | . . . 1 Artifact . | . . . . Weapon 6 | 3 . . 3 Energy Gun . | . . . . Energy Cannon . | . . . . Ballistic Gun 6 | 3 . . 3 Ballistic Cannon . | . . . . Launcher . | . . . . Special Weapon . | . . . . Impact Weapon . | . . . . Slashing Weapon . | . . . . Piercing Weapon . | . . . . Special Melee Weapon . | . . . . Unidentified Prototypes . | . . . . Parts Lost 6 | . . . 6 Power 2 | . . . 2 Propulsion 1 | . . . 1 Utility . | . . . . Weapon 3 | . . . 3 Highest Loss Streak 4 | . . . 4 To Critical Strikes . | . . . . Average Slot Usage (%) 76 | . 85 85 62 Engine 11 | . 14 14 8 Leg 25 | . 28 28 21 Storage 12 | . 14 14 11 Ballistic Gun 24 | . 28 28 18 Peak Build Rating 9 | 6 6 6 9 Average Rating 6 | 4 6 6 6 On Entrance 4 | . 6 6 6 Naked Turns . | . . . . Heaviest Build 14 | 11 10 12 14 Greatest Support 20 | 20 20 20 20 Greatest Overweight (x) 1 | . . . 1 Average Overweight (x) . | . . . . Largest Inventory Capacity 8 | 8 8 8 8 Average Capacity 7 | 7 8 8 8 Most Carried 8 | 4 4 6 8 Average Carried 4 | 2 3 4 4 Final Capacity 8 | 8 8 8 8 Final Carried 5 | 4 4 5 2 Class Distribution -------------------- 100% | Mutant Dominant Class ---------------- Mutant | -10/Materials Mutant | -10/Mines Mutant | -9/Materials Resources | -11 -10 -10 -9 ----------- Run | Yrd Mat Min Mat Matter Collected 444 | 162 68 83 131 Remotely . | . . . . Salvage Created 354 | . 68 89 197 Parts 19 | . 6 4 9 Haulers Intercepted . | . . . . Recyclers Shooed . | . . . . Parts Field Recycled . | . . . . Retrieved Matter . | . . . . Parts Self-Destructed . | . . . . Prevented . | . . . . Kills | -11 -10 -10 -9 ------- Run | Yrd Mat Min Mat Combat Hostiles Destroyed 9 | . 3 2 4 Guns 9 | . 3 2 4 Classes Destroyed 4 | . 2 . 2 Watcher 1 | . . . 1 Swarmer 2 | . 2 . . Grunt 6 | . 1 2 3 Sentry 1 | . . . 1 Best Kill Streak 2 | . 2 2 2 Combat Bots Only 2 | . 2 2 2 Max Kills in Single Turn 1 | . 1 1 1 Gunslinging . | . . . . Exploded . | . . . . Melee . | . . . . Uniques/NPCs Destroyed . | . . . . Combat | -11 -10 -10 -9 -------- Run | Yrd Mat Min Mat Hostile Shots Fired 86 | . 8 17 61 Missed 13 | . 1 4 8 Damage Taken 961 | . 63 183 715 Core 184 | . 33 43 108 Absorbed by Shields . | . . . . Core Remaining (%) 84 | 100 . 69 . Volleys Fired 46 | . 7 11 28 Largest 2 | . 2 2 2 Hottest 40 | . 40 40 40 Shots Fired 73 | . 14 22 37 Gun 73 | . 14 22 37 Cannon . | . . . . Launcher . | . . . . Special . | . . . . Kinetic 73 | . 14 22 37 Thermal . | . . . . Explosive . | . . . . Electromagnetic . | . . . . Robot Hit Streak 11 | . 7 11 9 Robot Miss Streak 2 | . 2 1 2 Penetration Max . | . . . . Secondary Targets 1 | . . 1 . Max Gunslinging Chain 1 | . . 1 . Shots Hit Robots 57 | . 10 18 29 Core Hits 26 | . 7 8 11 Critical Kills 1 | . 1 . . Critical Parts Destroyed . | . . . . Critical Strikes 1 | . 1 . . Destroy 1 | . 1 . . Melee Attacks . | . . . . Impact . | . . . . Slashing . | . . . . Piercing . | . . . . Sneak Attacks . | . . . . Combat Hostiles . | . . . . Follow-up Attacks . | . . . . Damage Inflicted 534 | . 82 148 304 Guns 528 | . 80 144 304 Cannons . | . . . . Explosions . | . . . . Melee . | . . . . Ramming 6 | . 2 4 . Kinetic 528 | . 80 144 304 Thermal . | . . . . Explosive . | . . . . Electromagnetic . | . . . . Impact . | . . . . Slashing . | . . . . Piercing . | . . . . Highest Corruption . | . . . . Average Corruption . | . . . . Corruption Purged . | . . . . Corruption Blocked . | . . . . Overload Shots . | . . . . Overflow Damage . | . . . . Projectiles . | . . . . Explosions . | . . . . Melee . | . . . . Knockbacks . | . . . . Impact . | . . . . Kinetic . | . . . . Secondary . | . . . . Self-Inflicted Damage . | . . . . Shots . | . . . . Rammed . | . . . . Targets Rammed 3 | . 1 2 . Kicked 3 | . 1 2 . Crushed . | . . . . Highest Temperature 30 | . 6 30 22 Average Temperature 10 | . 6 14 7 Received Heat Transfer 423 | . 18 105 300 Siege Activations . | . . . . Robots Corrupted . | . . . . Combat Hostiles . | . . . . Parts Fried . | . . . . Impact Corruptions . | . . . . Robots Melted . | . . . . Combat Hostiles . | . . . . Parts Melted . | . . . . Heat Transferred . | . . . . Parts Sabotaged . | . . . . Parts Stolen . | . . . . Parts Stripped . | . . . . Power Chain Reactions . | . . . . Alert | -11 -10 -10 -9 ------- Run | Yrd Mat Min Mat Peak Influence 145 | . 145 106 112 Initial 56 | . . 56 40 Average 61 | . 78 70 58 Maximum Alert Level . | . . . . Low Security (%) 100 | 100 100 100 100 Level 1 . | . . . . Level 2 . | . . . . Level 3 . | . . . . Level 4 . | . . . . Level 5 . | . . . . High Security . | . . . . Max Security . | . . . . Squads Dispatched 3 | . 3 . . Investigation . | . . . . Extermination . | . . . . Reinforcement 3 | . 3 . . Assault . | . . . . Garrison . | . . . . Intercept . | . . . . Searches Triggered . | . . . . Construction Impeded . | . . . . Haulers Reinforced . | . . . . Active Scanning Responses . | . . . . Cargo Convoy Interrupts . | . . . . Stealth | -11 -10 -10 -9 --------- Run | Yrd Mat Min Mat Distress Signals 2 | . 1 . 1 Communications Jammed . | . . . . Distress Signals . | . . . . Times Spotted 18 | . 9 2 7 Peak Tracking Total 4 | . 4 2 3 Tactical Retreats 1 | . 1 . . Traps | -11 -10 -10 -9 ------- Run | Yrd Mat Min Mat Traps Triggered 1 | . . . 1 Indirectly . | . . . . Trap Hack Attempts . | . . . . Triggered . | . . . . Disarmed . | . . . . Reprogrammed . | . . . . Reused . | . . . . Traps Extracted . | . . . . Installed . | . . . . Triggered . | . . . . Machines | -11 -10 -10 -9 ---------- Run | Yrd Mat Min Mat Machines Disabled . | . . . . Max in Single Turn . | . . . . Machines Repaired . | . . . . Machines Dismantled . | . . . . Machines Sabotaged . | . . . . Overloaded Fab Kills . | . . . . Hacking | -11 -10 -10 -9 --------- Run | Yrd Mat Min Mat Machines Accessed 2 | . 2 . . Terminals 2 | . 2 . . Fabricators . | . . . . Repair Stations . | . . . . Recycling Units . | . . . . Scanalyzers . | . . . . Garrison Access . | . . . . Total Hacks 3 | . 3 . . Successful 3 | . 3 . . Failed . | . . . . Catastrophic . | . . . . Database Lockouts . | . . . . Manual . | . . . . Terminals 3 | . 3 . . Fabricators . | . . . . Repair Stations . | . . . . Recycling Units . | . . . . Scanalyzers . | . . . . Garrison Access . | . . . . Terminal Hacks 3 | . 3 . . Record 1 | . 1 . . Transport Status 1 | . 1 . . Zone Layout 1 | . 1 . . Fabricator Hacks . | . . . . Repair Station Hacks . | . . . . Recycling Unit Hacks . | . . . . Scanalyzer . | . . . . Garrison Access Hacks . | . . . . Unauthorized Hacks . | . . . . Terminals . | . . . . Fabricators . | . . . . Repair Stations . | . . . . Recycling Units . | . . . . Scanalyzers . | . . . . Garrison Access . | . . . . Data Cores Recovered . | . . . . Used . | . . . . Hacking Detections 2 | . 2 . . Full Trace Events . | . . . . Feedback Events . | . . . . Feedback Blocked . | . . . . Robot Schematics Acquired . | . . . . Robots Built . | . . . . Authchips . | . . . . Time . | . . . . Total Robot Build Rating . | . . . . Part Schematics Acquired . | . . . . Parts Built . | . . . . Authchips . | . . . . Time . | . . . . Total Part Build Rating . | . . . . Parts Repaired . | . . . . Time . | . . . . Parts Recycled . | . . . . Recycled Matter . | . . . . Retrieved Matter . | . . . . Retrieved Components . | . . . . Parts Scanalyzed . | . . . . Part Schematics Acquired . | . . . . Parts Damaged . | . . . . Bothacking | -11 -10 -10 -9 ------------ Run | Yrd Mat Min Mat Used RIF Installer . | . . . . Robots Hacked . | . . . . Non-combat . | . . . . Combat . | . . . . Robot Hacks Applied . | . . . . Relay Couplers Released . | . . . . Fabnet Peak Effective % . | . . . . Robots Rewired . | . . . . Allies Hacked . | . . . . Hacks Repelled . | . . . . Allies | -11 -10 -10 -9 -------- Run | Yrd Mat Min Mat Total Allies . | . . . . Largest Group . | . . . . Highest-Rated Group . | . . . . Highest-Rated Ally . | . . . . Total Orders . | . . . . Ally Attacks . | . . . . Total Damage . | . . . . Kills . | . . . . Allies Corrupted . | . . . . Allies Melted . | . . . . Intel | -11 -10 -10 -9 ------- Run | Yrd Mat Min Mat Robot Analysis Total . | . . . . Derelict Logs Recovered . | . . . . Drone Launches . | . . . . Drone Recoveries . | . . . . Exploration | -11 -10 -10 -9 ------------- Run | Yrd Mat Min Mat Turns Passed 811 | 69 178 285 279 Spaces Moved 518 | 46 120 197 155 Core 6 | 6 . . . Treads . | . . . . Legs 512 | 40 120 197 155 Wheels . | . . . . Hover . | . . . . Flight . | . . . . Fastest Speed 50 | 50 120 120 120 Average Speed 119 | 110 120 120 120 Slowest Speed 190 | 120 120 120 190 Overloaded Moves . | . . . . Propulsion Burnouts . | . . . . Robots Hopped . | . . . . Cave-ins Triggered . | . . . . Exploration Rate (%) 17 | 4 23 28 16 Regions Visited 3 Branch Regions 1 Pre-discovered Areas . | . . . . Known Exits Taken . | . . . . Unknown Exits Taken 3 | 1 1 1 . Scrap Searched 1 | . . 1 . Spaces Dug . | . . . . Terrain Destroyed . | . . . . Melee . | . . . . Projectile . | . . . . AOE . | . . . . Terrain Rammed . | . . . . Walls Destroyed . | . . . . Machines Disabled . | . . . . Actions | -11 -10 -10 -9 --------- Run | Yrd Mat Min Mat Total 643 | 60 143 227 213 Wait 41 | 4 12 15 10 Move 515 | 45 119 196 155 Hop . | . . . . Pick Up 7 | 4 2 1 . Fast Attach 12 | 6 . . 6 Attach 2 | . . . 2 Detach 2 | . . . 2 Swap 6 | 1 . 1 4 Drop 9 | . 2 1 6 Fire 46 | . 7 11 28 Melee . | . . . . Ram . | . . . . Kick 3 | . 1 2 . Crush . | . . . . Escape Stasis . | . . . . Rewire . | . . . . Trap . | . . . . Miscellaneous . | . . . . Route ------- -11/Scrapyard -10/Materials -10/Mines -9/Materials History --------- Turn | Location | Event 21 | -11/Scrapyard | Discovered new exit (range 16) 70 | -11/Scrapyard | Entered Materials 78 | -10/Materials | Discovered new exit (range 13) 248 | -10/Materials | Entered Mines 309 | -10/Mines | Build established: Mutant 487 | -10/Mines | Assembled infested the area 515 | -10/Mines | Discovered new exit (range 15) 533 | -10/Mines | Entered Materials 533 | -9/Materials | Evolved 2 slots: Utility x2 812 | -9/Materials | Self-destructed Last Messages --------------- 00745_ Dropped Imp. Ion Engine. 00746_ Acquired 10 matter. 00748_ R-06 Scavenger collects Aluminum Leg. 00750_ Acquired 10 matter. 00756_ Dropped Aluminum Leg. 00757_ Acquired 4 matter. 00762_ W-16 Scout sends out distress signal. 00770_ W-16 Scout destroyed. 00773_ Acquired Visual Processing Unit. 00775_ Acquired 16 matter. 00783_ K-01 Serf collects debris. 00789_ Lgt. Nuclear Core destroyed. 00791_ K-01 Serf collects debris. 00805_ Ion Engine destroyed. 00807_ Aluminum Leg destroyed. 00808_ K-01 Serf collects debris. 00808_ Critical hit (Burn: +37). 00810_ Y-45 Defender destroyed. 00811_ K-01 Serf collects debris. 00811_ Assault Rifle destroyed. Map ----- +----------------------------------------------------+ | | | | | | | | | | | | | | | | | | | | | | | | | | | | | | | | | | | | | ??????????????????????????????????????????######## | | ?????????????????????????????????########?# | | ?????????????????????????????????# #?# | | ?????????????????????????????????# """ #?# " | | ????????????????????????##########*""" #?# " | | ????????????????????????# u +[""" #?# " | | ????????????????????????# #### ** #?# | | ????????????????????????#@ #??#==% #?# | | ??????????????????? %^= #######+##########+# | | ????????????? ^[ | | ??????????? Y k | | ???????????######+#######w | | ????????????????????????# #### ########### | | ????????????????????????###+#####k#??# #?????????? | | ????????????????????????????????#+#??#+#?????????? | | ????????????????????????????????????? ?????????? | | ?????????????????????????????????????"""?????????? | | ?????????????????????????????????????"""?????????? | | ?????????????????????????????????????"""?????????? | | ????????????????????????????????????? ?????????? | | ?????????????????????????????????????????????????? | | ?????????????????????????????????????????????????? | | ?????????????????????????????????????????????????? | | ?????????????????????????????????????????????????? | | ????????????????????????????????????????????? | | ????????????????????????????????????????????? | | ????????????????????????????????????????????? | | ??????????????????????????????????????????????#### | | ?????????????????????????????????????????????????? | | ?????????????????????????????????????????????????? | | ?????????????????????????????????????????????????? | | ?????????????????????????????????????????????????? | +----------------------------------------------------+ Best States ------------- Heat Dissipation 28 Energy Generation 14 Energy Capacity 265 Matter Stores 300 Matter Capacity 300 Sight Range 18 Terrain Scan Density 10 Evasion (%) 55 Item Schematics ----------------- None Robot Schematics ------------------ None Fabricated ------------ Nothing Alien Tech Used ----------------- None Achievements -------------- None Challenges ------------ None Game ------ Seed GreatMeleeMatter Manual? 0 Play Time 00:11:04 Cumulative 21.5 hours Start 2025.03.10 @ 14:30:26 End 2025.03.10 @ 14:38:49 Sessions 1 Manual Loads 0 Difficulty Rogue Special Mode None Game No. 37 Rogue 37 Adventurer 0 Explorer 0 Win Type - Total 0 Types 0/0/0/0/0/0/0/0/0 Lore% 13 Gallery% 23 Achievement% 19 Wizard Run 0 Options --------- Layout 1 ASCII 0 Keyboard 1 Movement Arrows Keybinds 0 Fullscreen 1 Font 24/Smallcaps Map View 50x35 Zoom Use 0% Tactical HUD 1 Map Filters NONE Filters NONE Steam 1 RUN: b874d335-fa68-40dd-a70c-891e067b1e95